Cogmind - Beta 14 @@@ ROGUE MODE // 2024.10.19 @ 22:54:01 Player: SgtBloody Result: Destroyed by OK-RDS(R) with Subdweller Laser Performance ------------- Evolutions (0) 0 Regions Visited (2) 400 Robots Destroyed (17) 85 Value Destroyed (179) 179 Prototype IDs (0) 0 Alien Tech Used (0) 0 Bonus (0) 0 TOTAL SCORE: 664 Bonus ------- None Cogmind --------- Core Integrity 0/250 Matter 258/300 Energy 100/100 System Corruption 1% Temperature Cool (6) Movement Walking (120) Location -10/Subcaves Parts ------- > --- POWER (1) -------- (None) > --- PROPULSION (2) --- Aluminum Leg Aluminum Leg > --- UTILITY (2) ------ Medium Storage Unit Targeting Computer > --- WEAPON (2) ------- Light Assault Rifle > --- INVENTORY (10) --- Light Ion Engine Light Ion Engine Aluminum Leg Medium Matter Pod (100) Sensor Array Improved Terrain Scanner Seismic Detector Light Armor Plating Light Assault Rifle Peak State ------------ > --- POWER ------------ Light Ion Engine > --- PROPULSION ------- Aluminum Leg Aluminum Leg > --- UTILITY ---------- Medium Matter Pod Improved Terrain Scanner > --- WEAPON ----------- Light Assault Rifle Light Assault Rifle > --- INVENTORY -------- Light Ion Engine Aluminum Leg [Rating: 9] Favorites ----------- Power Light Ion Engine Engine Light Ion Engine Propulsion Aluminum Leg Leg Aluminum Leg Wheel Wheel Utility Targeting Computer Device Improved Terrain Scanner Storage Medium Storage Unit Processor Targeting Computer Weapon Light Assault Rifle Ballistic Gun Light Assault Rifle Build | -11 -10 -10 ------- Run | Yrd Mat Sub Slots Evolved . | . . . Power . | . . . Propulsion . | . . . Utility . | . . . Weapon . | . . . Parts Attached 34 | 11 21 2 Power 6 | 1 5 . Engine 6 | 1 5 . Core . | . . . Reactor . | . . . Propulsion 10 | 4 5 1 Treads . | . . . Leg 8 | 2 5 1 Wheel 2 | 2 . . Hover . | . . . Flight . | . . . Utility 11 | 4 7 . Device 6 | 3 3 . Storage 4 | 1 3 . Processor 1 | . 1 . Hackware . | . . . Protection . | . . . Artifact . | . . . Weapon 7 | 2 4 1 Energy Gun . | . . . Energy Cannon . | . . . Ballistic Gun 7 | 2 4 1 Ballistic Cannon . | . . . Launcher . | . . . Special Weapon . | . . . Impact Weapon . | . . . Slashing Weapon . | . . . Piercing Weapon . | . . . Special Melee Weapon . | . . . Unidentified Prototypes . | . . . Parts Lost 7 | . 4 3 Power 3 | . 2 1 Propulsion 1 | . . 1 Utility 1 | . 1 . Weapon 2 | . 1 1 Highest Loss Streak 3 | . 3 3 To Critical Strikes . | . . . Average Slot Usage (%) 98 | . 99 97 Engine 13 | . 13 12 Leg 28 | . 28 28 Device 3 | . 4 . Storage 10 | . 10 14 Processor 13 | . 13 14 Ballistic Gun 27 | . 27 26 Peak Build Rating 9 | 9 9 9 Average Rating 7 | 6 8 8 On Entrance 5 | . 9 8 Naked Turns . | . . . Heaviest Build 20 | 8 17 20 Greatest Support 20 | 20 20 20 Greatest Overweight (x) 1 | . . 1 Average Overweight (x) . | . . . Largest Inventory Capacity 10 | 5 10 10 Average Capacity 7 | 5 8 10 Most Carried 10 | 4 10 10 Average Carried 6 | . 7 9 Final Capacity 10 | 5 10 10 Final Carried 10 | 4 10 9 Class Distribution -------------------- 76% | Mutant 23% | Scavenger-Mutant Dominant Class ---------------- Mutant | -10/Materials Scavenger-Mutant | -10/Subcaves Resources | -11 -10 -10 ----------- Run | Yrd Mat Sub Matter Collected 585 | 320 265 . Remotely . | . . . Salvage Created 430 | 103 327 . Parts 41 | 11 30 . Haulers Intercepted 1 | . 1 . Recyclers Shooed . | . . . Parts Field Recycled . | . . . Retrieved Matter . | . . . Parts Self-Destructed . | . . . Prevented . | . . . Kills | -11 -10 -10 ------- Run | Yrd Mat Sub Combat Hostiles Destroyed 10 | 1 9 . Guns 10 | 1 9 . Classes Destroyed 7 | 3 4 . Worker 1 | 1 . . Tunneler 2 | 2 . . Hauler 1 | . 1 . Recycler 1 | . 1 . Watcher 2 | . 2 . Swarmer 9 | . 9 . Grunt 1 | 1 . . Best Kill Streak 6 | 2 6 . Combat Bots Only 6 | 1 6 . Max Kills in Single Turn 1 | 1 1 . Gunslinging . | . . . Exploded . | . . . Melee . | . . . Uniques/NPCs Destroyed . | . . . Combat | -11 -10 -10 -------- Run | Yrd Mat Sub Hostile Shots Fired 139 | 4 93 42 Missed 48 | . 31 17 Damage Taken 1129 | 41 508 580 Core 263 | 21 97 145 Absorbed by Shields . | . . . Core Remaining (%) 91 | 91 . . Volleys Fired 66 | 16 47 3 Largest 2 | 2 2 2 Hottest 50 | 40 40 50 Shots Fired 132 | 32 94 6 Gun 132 | 32 94 6 Cannon . | . . . Launcher . | . . . Special . | . . . Kinetic 132 | 32 94 6 Thermal . | . . . Explosive . | . . . Electromagnetic . | . . . Robot Hit Streak 10 | 10 9 7 Robot Miss Streak 7 | 4 7 . Penetration Max . | . . . Secondary Targets 1 | . 1 . Max Gunslinging Chain 1 | . 1 . Shots Hit Robots 74 | 20 48 6 Core Hits 33 | 8 24 1 Critical Kills . | . . . Critical Parts Destroyed . | . . . Critical Strikes . | . . . Melee Attacks . | . . . Impact . | . . . Slashing . | . . . Piercing . | . . . Sneak Attacks . | . . . Combat Hostiles . | . . . Follow-up Attacks . | . . . Damage Inflicted 686 | 162 425 99 Guns 663 | 154 410 99 Cannons . | . . . Explosions . | . . . Melee . | . . . Ramming 23 | 8 15 . Kinetic 663 | 154 410 99 Thermal . | . . . Explosive . | . . . Electromagnetic . | . . . Impact . | . . . Slashing . | . . . Piercing . | . . . Highest Corruption 1 | . 1 1 Average Corruption 1 | . 1 1 Corruption Purged . | . . . Corruption Blocked . | . . . Effects 1 | . . 1 Message Errors 1 | . . 1 Overload Shots . | . . . Overflow Damage . | . . . Projectiles . | . . . Explosions . | . . . Melee . | . . . Knockbacks . | . . . Impact . | . . . Kinetic . | . . . Secondary . | . . . Self-Inflicted Damage . | . . . Shots . | . . . Rammed . | . . . Targets Rammed 5 | 3 2 . Kicked 5 | 3 2 . Crushed . | . . . Highest Temperature 12 | 12 . . Average Temperature 9 | 9 . . Received Heat Transfer 174 | 24 . 150 Siege Activations . | . . . Robots Corrupted . | . . . Combat Hostiles . | . . . Parts Fried . | . . . Impact Corruptions . | . . . Robots Melted . | . . . Combat Hostiles . | . . . Parts Melted . | . . . Heat Transferred . | . . . Parts Sabotaged . | . . . Parts Stolen . | . . . Parts Stripped . | . . . Power Chain Reactions . | . . . Alert | -11 -10 -10 ------- Run | Yrd Mat Sub Peak Influence 245 | 36 245 . Initial 23 | . 23 . Average 48 | 15 56 . Maximum Alert Level 1 | . 1 . Low Security (%) 96 | 100 95 . Level 1 3 | . 4 . Level 2 . | . . . Level 3 . | . . . Level 4 . | . . . Level 5 . | . . . High Security . | . . . Max Security . | . . . Squads Dispatched . | . . . Investigation . | . . . Extermination . | . . . Reinforcement . | . . . Assault . | . . . Garrison . | . . . Intercept . | . . . Searches Triggered . | . . . Construction Impeded . | . . . Haulers Reinforced . | . . . Active Scanning Responses . | . . . Cargo Convoy Interrupts . | . . . Stealth | -11 -10 -10 --------- Run | Yrd Mat Sub Distress Signals 1 | . 1 . Communications Jammed . | . . . Distress Signals . | . . . Times Spotted 33 | 1 19 13 Peak Tracking Total 12 | 1 7 12 Tactical Retreats 1 | . 1 . Traps | -11 -10 -10 ------- Run | Yrd Mat Sub Traps Triggered 2 | . 2 . Indirectly . | . . . Trap Hack Attempts . | . . . Triggered . | . . . Disarmed . | . . . Reprogrammed . | . . . Reused . | . . . Traps Extracted . | . . . Installed . | . . . Triggered . | . . . Machines | -11 -10 -10 ---------- Run | Yrd Mat Sub Machines Disabled . | . . . Max in Single Turn . | . . . Machines Repaired . | . . . Machines Dismantled . | . . . Machines Sabotaged . | . . . Overloaded Fab Kills . | . . . Hacking | -11 -10 -10 --------- Run | Yrd Mat Sub Machines Accessed 7 | . 7 . Terminals 4 | . 4 . Fabricators . | . . . Repair Stations 1 | . 1 . Recycling Units 2 | . 2 . Scanalyzers . | . . . Garrison Access . | . . . Total Hacks 11 | . 11 . Successful 7 | . 7 . Failed 4 | . 4 . Catastrophic . | . . . Database Lockouts . | . . . Manual . | . . . Terminals 7 | . 7 . Fabricators . | . . . Repair Stations 2 | . 2 . Recycling Units 2 | . 2 . Scanalyzers . | . . . Garrison Access . | . . . Terminal Hacks 4 | . 4 . Record 1 | . 1 . Alert Level 2 | . 2 . Locate Traps 1 | . 1 . Fabricator Hacks . | . . . Repair Station Hacks 1 | . 1 . Scan Component 1 | . 1 . Recycling Unit Hacks 2 | . 2 . Report Inventory 2 | . 2 . Scanalyzer . | . . . Garrison Access Hacks . | . . . Unauthorized Hacks . | . . . Terminals . | . . . Fabricators . | . . . Repair Stations . | . . . Recycling Units . | . . . Scanalyzers . | . . . Garrison Access . | . . . Data Cores Recovered . | . . . Used . | . . . Hacking Detections 1 | . 1 . Full Trace Events . | . . . Feedback Events . | . . . Feedback Blocked . | . . . Robot Schematics Acquired . | . . . Robots Built . | . . . Authchips . | . . . Time . | . . . Total Robot Build Rating . | . . . Part Schematics Acquired . | . . . Parts Built . | . . . Authchips . | . . . Time . | . . . Total Part Build Rating . | . . . Parts Repaired . | . . . Time . | . . . Parts Recycled . | . . . Recycled Matter . | . . . Retrieved Matter . | . . . Retrieved Components . | . . . Parts Scanalyzed . | . . . Part Schematics Acquired . | . . . Parts Damaged . | . . . Bothacking | -11 -10 -10 ------------ Run | Yrd Mat Sub Used RIF Installer . | . . . Robots Hacked . | . . . Non-combat . | . . . Combat . | . . . Robot Hacks Applied . | . . . Relay Couplers Released . | . . . Fabnet Peak Effective % . | . . . Robots Rewired . | . . . Allies Hacked . | . . . Hacks Repelled . | . . . Allies | -11 -10 -10 -------- Run | Yrd Mat Sub Total Allies . | . . . Largest Group . | . . . Highest-Rated Group . | . . . Highest-Rated Ally . | . . . Total Orders . | . . . Ally Attacks . | . . . Total Damage . | . . . Kills . | . . . Allies Corrupted . | . . . Allies Melted . | . . . Intel | -11 -10 -10 ------- Run | Yrd Mat Sub Robot Analysis Total . | . . . Derelict Logs Recovered . | . . . Drone Launches . | . . . Drone Recoveries . | . . . Exploration | -11 -10 -10 ------------- Run | Yrd Mat Sub Turns Passed 1589 | 311 1153 125 Spaces Moved 1122 | 228 801 93 Core 18 | 18 . . Treads . | . . . Legs 1054 | 160 801 93 Wheels 50 | 50 . . Hover . | . . . Flight . | . . . Fastest Speed 50 | 50 120 120 Average Speed 117 | 105 120 120 Slowest Speed 190 | 120 120 190 Overloaded Moves . | . . . Propulsion Burnouts . | . . . Robots Hopped . | . . . Cave-ins Triggered . | . . . Exploration Rate (%) 31 | 10 75 9 Regions Visited 2 Branch Regions 1 Pre-discovered Areas . | . . . Known Exits Taken . | . . . Unknown Exits Taken 2 | 1 1 . Scrap Searched . | . . . Spaces Dug . | . . . Terrain Destroyed . | . . . Melee . | . . . Projectile . | . . . AOE . | . . . Terrain Rammed . | . . . Walls Destroyed . | . . . Machines Disabled . | . . . Actions | -11 -10 -10 --------- Run | Yrd Mat Sub Total 1284 | 266 917 101 Wait 23 | 4 19 . Move 1120 | 227 800 93 Hop . | . . . Pick Up 24 | 5 18 1 Fast Attach 9 | 6 3 . Attach 7 | 1 5 1 Detach . | . . . Swap 18 | 4 13 1 Drop 12 | . 10 2 Fire 66 | 16 47 3 Melee . | . . . Ram . | . . . Kick 5 | 3 2 . Crush . | . . . Escape Stasis . | . . . Rewire . | . . . Trap . | . . . Miscellaneous . | . . . Route ------- -11/Scrapyard -10/Materials (discovered 5 exits: [*Mat x3] / [*Min] / [*Sub]) -10/Subcaves History --------- Turn | Location | Event 2 | -11/Scrapyard | Met Revision 17 129 | -11/Scrapyard | Discovered new exit (range 8) 312 | -11/Scrapyard | Entered Materials 313 | -10/Materials | Build established: Mutant 539 | -10/Materials | Discovered new exit (range 16) 541 | -10/Materials | Discovered new exit (range 11) 696 | -10/Materials | Lost 3 parts (1p1u1w) 1035 | -10/Materials | Discovered new exit (range 4) 1223 | -10/Materials | Discovered new exit (range 10) 1346 | -10/Materials | Discovered new exit (range 9) 1465 | -10/Materials | Entered Subcaves 1497 | -10/Subcaves | Build established: Scavenger-Mutant 1534 | -10/Subcaves | Shifting Twisted Machinery released Battle Rifle 1548 | -10/Subcaves | Shifting Twisted Machinery released Sub. Machine Gun 1552 | -10/Subcaves | Ambushed by swarm of Subdwellers 1554 | -10/Subcaves | Ambushed by Subdwellers from Twisted Machinery 1554 | -10/Subcaves | Ambushed by Subdwellers from Twisted Machinery 1554 | -10/Subcaves | Ambushed by Subdwellers from Twisted Machinery 1554 | -10/Subcaves | Ambushed by Subdwellers from Twisted Machinery 1558 | -10/Subcaves | Core integrity fell below 50% 1581 | -10/Subcaves | Core integrity fell below 20% 1590 | -10/Subcaves | Destroyed by OK-RDS(R) with Subdweller Laser Last Messages --------------- Machinery. 36-84L(R) angrily emerges from the Twisted Machinery. TY-100(R) emerges from the Twisted Machinery. 2Q-D13(R) emerges from the Twisted Machinery. 7R-EYK(g): "Sorry we're late! Had another grouchy Sub to deal with. Who's the new fellow?" HV Slug penetrates Twisted Machinery. HV Slug penetrates FZ-PXF(R). FZ-PXF(R) suffers critical hit (Destroy). FZ-PXF(R) destroyed. HV Slug penetrates BD-81P(R). BD-81P(R) knocked back. HV Slug penetrates Twisted Machinery. U6-MU6(h) suffers critical hit (Destroy). NN-ZSH(R) suffers critical hit (Burn). Aluminum Leg destroyed. Sub. Machine Gun destroyed. Ion Engine destroyed. Map ----- +----------------------------------------------------+ | ?????????????????????????????????????????????????? | | ?????????????????????????????????????????????????? | | ?????????????????????????????????????????????????? | | ?????????????????????????????????????????????????? | | ?????????????????????????????????????????????????? | | ?????????????????????????????????????????????????? | | ?????????????????????????????????????????????????? | | ???????####????????????????#?????????????????????? | | ???????# ""???????????????# ????????????????????? | | ???????# " ?????????? ? ????????????????????? | | #?????##""####???????"" #?????????????????????? | | ##???## "## "###???"" " #??????????????????????? | | ##?## """" ""#???" " ##?????????????????????? | | ### """ ""#????#""" #?????????????????????? | | # # " # ""#????# #????? ????????????? | | # ####" "#??### #????? ????????????? | | #### ##??#" #### ##??? % ???????????? | | ???####???# ## ## ### ????????????? | | ??????????## #= ## ?????????????? | | ?????????## !][R R## = #??????????????? | | ?????????#! *%!## R R #??????????????? | | ?????????#"%[ =###RRRR ## O #??????????????? | | ?????????#""![!## ## #??????????????? | | ?????????#*%& # R #??????????????? | | ???????? %&"### % #; #??????????????? | | ??????# ##?######## @ ## ???????????? | | ??????## ??????????# ##????????????????????? | | ???????# ??????????# ##?????????????????????? | | ???????## ??????????# ;#??????????????????????? | | ????????# ??????????#####??????????????????????? | | ????????# ?????????????????????????????????????? | | ????????# ?????????????????????????????????????? | | ????????####?????????????????????????????????????? | | ?????????????????????????????????????????????????? | | ?????????????????????????????????????????????????? | | ?????????????????????????????????????????????????? | | ?????????????????????????????????????????????????? | | ?????????????????????????????????????????????????? | | ?????????????????????????????????????????????????? | | ?????????????????????????????????????????????????? | | ?????????????????????????????????????????????????? | | ?????????????????????????????????????????????????? | | ?????????????????????????????????????????????????? | | ?????????????????????????????????????????????????? | | ?????????????????????????????????????????????????? | | ?????????????????????????????????????????????????? | | ?????????????????????????????????????????????????? | | ?????????????????????????????????????????????????? | | ?????????????????????????????????????????????????? | | ?????????????????????????????????????????????????? | +----------------------------------------------------+ Best States ------------- Heat Dissipation 25 Energy Generation 10 Energy Capacity 250 Matter Stores 400 Matter Capacity 400 Sight Range 16 Terrain Scan Range 16 Terrain Scan Density 10 Evasion (%) 55 Targeting Accuracy 5 Item Schematics ----------------- None Robot Schematics ------------------ None Fabricated ------------ Nothing Alien Tech Used ----------------- None Achievements -------------- Crack Shot Loot Pinata Storm Trooper Challenges ------------ None Game ------ Seed SkeletonZioniteStripper Manual? 0 Play Time 00:43:03 Cumulative 1.8 hours Start 2024.10.19 @ 22:04:31 End 2024.10.19 @ 22:54:01 Sessions 4 Manual Loads 0 Difficulty Rogue Special Mode None Game No. 2 Rogue 2 Adventurer 0 Explorer 0 Win Type - Total 0 Types 0/0/0/0/0/0/0/0/0 Lore% 0 Gallery% 1 Achievement% 2 Wizard Run 0 Options --------- Layout 1 ASCII 0 Keyboard 0 Movement Vi Keybinds 0 Fullscreen 2 Font 24/Smallcaps Map View 50x35 Zoom Use 0% Tactical HUD 0 Map Filters NONE Filters NONE Steam 1 RUN: 373c2bdd-96da-4401-961d-5a11a84e4187